fUST/lending_fUST_20250716
["ID","MTS","AMOUNT","RATE_DAILY","PERIOD"]
[372473743,1752658255144,-2222.07,0.00024109,2]
[372473745,1752658255153,-491.38452693,0.00024171,2]
[372473747,1752658255163,-151.0,0.00024184,6]
[372473749,1752658255172,-151.0,0.00024243,7]
[372473751,1752658255182,-988.49883,0.00024243,7]
[372473753,1752658255191,-988.49883,0.00024243,7]
[372473755,1752658255203,-1240.14837883,0.00024245,10]
[372473757,1752658255212,-3258.04431378,0.00024267,2]
[372473759,1752658255222,-151.511243,0.00024364,10]
[372473761,1752658255232,-1307.03,0.00024383,2]
[372473763,1752658255241,-228.14,0.00024383,2]
[372473765,1752658255250,-1872.38,0.00024383,2]
[372473767,1752658255259,-831.68,0.00024383,2]
[372473769,1752658255269,-460.0,0.00024383,2]
[372473771,1752658255279,-1118.23,0.00024383,2]
[372473773,1752658255288,-469.33,0.00024383,2]
[372473775,1752658255298,-460.0,0.00024383,2]
[372473777,1752658255308,-3790.78,0.00024383,2]
[372473779,1752658255317,-1773.18,0.00024383,2]
[372473781,1752658255327,-881.94,0.00024383,2]
[372473783,1752658255337,-460.0,0.00024383,2]
[372473785,1752658255346,-2784.38,0.00024383,2]
[372473787,1752658255356,-1682.41,0.00024383,2]
[372473789,1752658255365,-460.0,0.00024383,2]
[372473791,1752658255375,-1313.13,0.00024383,2]
[372473793,1752658255385,-487.35,0.00024383,2]
[372473794,1752658255394,-1503.77,0.00024383,2]
[372473797,1752658255405,-482.54,0.00024383,2]
[372473798,1752658255414,-742.75,0.00024383,2]
[372473800,1752658255423,-2222.07,0.00024383,2]
[372473802,1752658255432,-21685.38,0.000244,2]
[372473804,1752658255443,-151.0,0.00024448,7]
[372473806,1752658255453,-1240.14837883,0.00024452,11]
[372473808,1752658255463,-5920.6550084,0.0002449,2]
[372473810,1752658255472,-1202.778514,0.000245,8]
[372473812,1752658255481,-491.38452693,0.00024532,2]
[372473814,1752658255490,-823.0,0.00024596,2]
[372473816,1752658255499,-220.0,0.00024596,2]
[372473817,1752658255510,-3292.0,0.00024598,2]
[372473819,1752658255519,-189.074,0.00024646,2]
[372473821,1752658255529,-151.511243,0.00024651,2]
[372473823,1752658255539,-520.21646966,0.00024656,2]
[372473825,1752658255549,-1307.03,0.00024657,2]
[372473827,1752658255558,-350.27166094,0.00024657,2]
[372473829,1752658255567,-1872.38,0.00024657,2]
[372473831,1752658255577,-831.68,0.00024657,2]
[372473833,1752658255586,-1118.23,0.00024657,2]
[372473835,1752658255596,-405.4954217,0.00024657,2]
[372473837,1752658255605,-469.33,0.00024657,2]
[372473839,1752658255614,-460.0,0.00024657,2]
[372473841,1752658255625,-3790.78,0.00024657,2]
[372473843,1752658255636,-1773.18,0.00024657,2]
[372473845,1752658255650,-881.94,0.00024657,2]
[372473847,1752658255662,-460.0,0.00024657,2]
[372473849,1752658255671,-151.0,0.00024657,7]
[372473851,1752658255681,-2784.38,0.00024657,2]
[372473853,1752658255690,-1682.41,0.00024657,2]
[372473855,1752658255699,-151.0,0.00024657,7]
[372473857,1752658255708,-460.0,0.00024657,2]
[372473859,1752658255719,-225.057053,0.00024657,7]
[372473861,1752658255729,-1313.13,0.00024657,2]
[372473863,1752658255738,-487.35,0.00024657,2]
[372473865,1752658255748,-1503.77,0.00024657,2]
[372473866,1752658255759,-482.54,0.00024657,2]
[372473868,1752658255770,-742.75,0.00024657,2]
[372473870,1752658255779,-2222.07,0.00024657,2]
[372473872,1752658255789,-1240.14837883,0.00024659,11]
[372473874,1752658255800,-226.9605997,0.00024712,2]
[372473877,1752658255811,-151.0,0.00024713,7]
[372473878,1752658255820,-13330.02,0.000248,7]
[372473880,1752658255830,-151.0,0.000248,7]
[372473882,1752658255839,-151.0,0.000248,7]
[372473884,1752658255848,-292.327207,0.000248,7]
[372473886,1752658255858,-4705.0752742,0.000248,2]
[372473888,1752658255867,-292.327207,0.000248,7]
[372473890,1752658255877,-319.7326873,0.00024849,2]
[372473892,1752658255886,-151.511243,0.0002485,2]
[372473894,1752658255895,-1240.14837883,0.00024866,12]
[372473896,1752658255905,-10114.06492502,0.0002487,4]
[372473898,1752658255914,-151.511243,0.0002489,7]
[372473900,1752658255924,-491.38452693,0.00024894,2]
[372473901,1752658255933,-500.0,0.00024899,10]
[372473903,1752658255942,-771.05,0.000249,2]
[372473905,1752658255952,-151.0,0.000249,7]
[372473907,1752658255961,-151.0,0.000249,7]
[372473909,1752658255971,-151.0,0.000249,7]
[372473911,1752658255980,-151.0,0.000249,7]
[372473913,1752658255989,-1163.856093,0.000249,7]
[372473915,1752658255998,-1163.856093,0.000249,7]
[372473917,1752658256008,-151.0,0.000249,7]
[372473919,1752658256017,-212.91498,0.000249,7]
[372473921,1752658256029,-212.91498,0.000249,7]
[372473923,1752658256038,-187.836295,0.000249,7]
[372473925,1752658256047,-187.836295,0.000249,7]
[372473927,1752658256056,-151.0,0.000249,7]
[372473929,1752658256065,-988.49883,0.000249,7]
[372473931,1752658256075,-988.49883,0.000249,7]
[372473933,1752658256084,-151.0,0.000249,7]
[372473935,1752658256093,-292.327207,0.000249,7]
[372473937,1752658256102,-554268.50147726,0.000249,2]
[372473953,1752658256257,-500.0,0.00018992,2]
[372473955,1752658256266,-413.27202603,0.00018992,2]
[372473957,1752658256276,-460.0,0.00019178,2]
[372473959,1752658256285,-460.0,0.00019178,2]
[372473961,1752658256294,-460.0,0.00019178,2]
[372473963,1752658256304,-460.0,0.00019452,2]
[372473965,1752658256313,-460.0,0.00019452,2]
[372473967,1752658256323,-460.0,0.00019452,2]
[372473969,1752658256332,-602.44,0.00019726,2]
[372473971,1752658256341,-460.0,0.00019726,2]
[372473973,1752658256350,-460.0,0.00019726,2]
[372473975,1752658256360,-460.0,0.0002,2]
[372473977,1752658256370,-460.0,0.0002,2]
[372473979,1752658256380,-363.81338388,0.00020273,2]
[372473981,1752658256388,-176.44,0.00020273,2]
[372473982,1752658256398,-460.0,0.00020547,2]
[372473984,1752658256407,-460.0,0.00020821,2]
[372473986,1752658256418,-460.0,0.00021095,2]
[372473988,1752658256427,-525.39,0.00021369,2]
[372473990,1752658256436,-3696.64459009,0.000249,2]
[372473993,1752658256448,-17560.99631643,0.000249,2]
[372473995,1752658256466,-4139.88763402,0.000249,2]
[372473997,1752658256477,-3224.95748667,0.000249,2]
[372473999,1752658256488,-66195.89465253,0.000249,2]
[372474001,1752658256498,-151.0,0.000249,7]
[372474003,1752658256507,-292.327207,0.000249,7]
[372474005,1752658256517,-151.0,0.000249,7]
[372474007,1752658256528,-500.0,0.0002493,10]
[372474009,1752658256537,-1307.03,0.00024931,2]
[372474011,1752658256546,-1872.38,0.00024931,2]
[372474013,1752658256555,-831.68,0.00024931,2]
[372474015,1752658256564,-1118.23,0.00024931,2]
[372474017,1752658256573,-469.33,0.00024931,2]
[372474019,1752658256582,-360.58,0.00024931,2]
[372474021,1752658256592,-3790.78,0.00024931,2]
[372474023,1752658256602,-1773.18,0.00024931,2]
[372474025,1752658256611,-881.94,0.00024931,2]
[372474027,1752658256621,-460.0,0.00024931,2]
[372474028,1752658256630,-2784.38,0.00024931,2]
[372474030,1752658256640,-1682.41,0.00024931,2]
[372474032,1752658256649,-460.0,0.00024931,2]
[372474034,1752658256659,-1313.13,0.00024931,2]
[372474036,1752658256668,-487.35,0.00024931,2]
[372474038,1752658256677,-1503.77,0.00024931,2]
[372474040,1752658256687,-482.54,0.00024931,2]
[372474042,1752658256696,-742.75,0.00024931,2]
[372474044,1752658256705,-2222.07,0.00024931,2]
[372474046,1752658256715,-500.0,0.00024932,2]
[372474048,1752658256731,-293.278932,0.00024932,2]
[372474050,1752658256741,-500.0,0.00024932,2]
[372474052,1752658256752,-483.0,0.00024932,2]
[372474054,1752658256762,-483.0,0.00024932,2]
[372474056,1752658256771,-500.0,0.00024932,2]
[372474058,1752658256782,-151.0,0.00024932,2]
[372474060,1752658256791,-200.93861572,0.00024932,2]
[372474062,1752658256800,-151.0,0.00024932,2]
[372474064,1752658256810,-500.0,0.00024932,2]
[372474066,1752658256819,-151.0,0.00024932,2]
[372474068,1752658256829,-500.0,0.00024932,2]
[372474071,1752658256839,-151.0,0.00024932,2]
[372474072,1752658256849,-151.0,0.00024932,2]
[372474074,1752658256858,-151.0,0.00024932,2]
[372474077,1752658256868,-160.0,0.0002494,3]
[372474079,1752658256878,-160.0,0.0002494,3]
[372474080,1752658256888,-1751.0,0.0002494,3]
[372474082,1752658256898,-160.0,0.0002494,3]
[372474084,1752658256907,-1751.0,0.0002494,3]
[372474086,1752658256918,-160.0,0.0002494,3]
[372474089,1752658256927,-1751.0,0.0002494,3]
[372474090,1752658256937,-160.0,0.0002494,3]
[372474092,1752658256947,-1751.0,0.0002494,3]
[372474094,1752658256956,-160.0,0.0002494,3]
[372474096,1752658256965,-1751.0,0.0002494,3]
[372474098,1752658256975,-1751.0,0.0002494,3]
[372474100,1752658256986,-1210.66513091,0.0002494,3]
[372474102,1752658256995,-250.0,0.00024964,2]
[372474104,1752658257005,-500.0,0.0002497,9]
[372474106,1752658257015,-151.0,0.00024978,7]
[372474108,1752658257025,-44798.86163847,0.00024998,2]
[372477918,1752658468163,24900.0,0.00017913,2]
[372477922,1752658562853,197.5147509,0.0001789,2]
[372477926,1752658659638,150.0,0.00016022,2]
[372477927,1752658715273,6250.0,0.00027397,120]
[372477955,1752659078216,307.040607,0.00013699,2]
[372477957,1752659154035,-185.08527343,0.00018594,2]
[372477958,1752659167542,-102.46659133,0.00018594,2]
[372477959,1752659167563,-64.17061973,0.00018691,2]
[372477960,1752659171452,-166.7900453,0.00018691,2]
[372477961,1752659173652,-188.85009561,0.00018691,2]
[372477962,1752659177892,-154.13462504,0.00018691,2]
[372477963,1752659177919,-45.62107111,0.00018694,2]
[372477964,1752659181129,-209.15682302,0.00018694,2]
[372477965,1752659186217,-70.35739946,0.00018694,2]
[372477966,1752659186239,-269.18578166,0.0001879,2]
[372477967,1752659188951,-30.81421834,0.0001879,2]
[372477968,1752659188974,-231.75889449,0.0001879,2]
[372477969,1752659190000,-231.75889449,0.0001879,2]
[372477970,1752659192188,-174.88390642,0.0001879,2]
[372477971,1752659204133,-188.96094332,0.0001879,2]
[372477972,1752659206245,-317.59055147,0.0001879,2]
[372477973,1752659209106,-55.04680981,0.0001879,2]
[372477974,1752659209135,-245.62561006,0.00018791,2]
[372477975,1752659213870,-54.37438994,0.00018791,2]
[372477976,1752659213892,-199.19473615,0.00018791,2]
[372477977,1752659218433,-100.80526385,0.00018791,2]
[372477978,1752659218455,-70.2945597,0.00018791,2]
[372477979,1752659220918,-161.23833719,0.0001879,2]
[372477980,1752659220940,-73.21737148,0.00018791,2]
[372477981,1752659222982,-300.0,0.0001879,2]
[372477982,1752659223004,-46.72058435,0.00018791,2]
[372477983,1752659227293,-109.76748447,0.00018791,2]
[372477984,1752659227316,-48.51895824,0.00018791,2]
[372477985,1752659229575,-491.50630833,0.00018791,2]
[372477986,1752659234544,-345.59726032,0.00018791,2]
[372477987,1752659235093,-314.37747311,0.00018791,2]
[372477988,1752659235114,-300.0,0.00018791,2]
[372477989,1752659235135,-500.0,0.00018791,2]
[372477990,1752659235155,-403.64201789,0.00018791,2]
[372477991,1752659235176,-500.0,0.00018791,2]
[372477992,1752659235199,-500.0,0.00018791,2]
[372477993,1752659235220,-564.79270028,0.00018791,2]
[372477994,1752659235241,-276.44624654,0.00018791,2]
[372477995,1752659235262,-500.0,0.00018791,2]
[372477996,1752659235282,-457.94045493,0.00018791,2]
[372477997,1752659235306,-500.0,0.00018791,2]
[372477998,1752659235328,-155.00596238,0.00018791,2]
[372477999,1752659235350,-500.0,0.00018791,2]
[372478000,1752659235373,-500.0,0.00018791,2]
[372478001,1752659235395,-254.10421281,0.00018791,2]
[372478002,1752659235417,-500.0,0.00018791,2]
[372478003,1752659235442,-500.0,0.00018791,2]
[372478004,1752659235467,-500.0,0.00018791,2]
[372478005,1752659235489,-500.0,0.00018791,2]
[372478006,1752659235511,-500.0,0.00018791,2]
[372478007,1752659235534,-500.0,0.00018791,2]
[372478008,1752659235555,-443.74906279,0.00018791,2]
[372478009,1752659238873,-275.44489285,0.00018691,2]
[372478010,1752659238897,-56.25093721,0.00018791,2]
[372478011,1752659238924,-75.83905424,0.00018791,2]
[372478012,1752659243349,-371.09982355,0.00018791,2]
[372478013,1752659245496,-53.06112221,0.00018791,2]
[372478014,1752659245520,-303.18310589,0.00018791,2]
[372478015,1752659247671,-196.81689411,0.00018791,2]
[372478016,1752659247697,-54.650078,0.00018791,2]
[372478017,1752659249826,-314.62338929,0.00018791,2]
[372478018,1752659251575,-130.72653271,0.00018791,2]
[372478019,1752659251601,-124.46282207,0.00018791,2]
[372478020,1752659253132,-514.31371054,0.00018791,2]
[372478021,1752659253156,-500.0,0.00018791,2]
[372478022,1752659253179,-500.0,0.00018791,2]
[372478023,1752659253203,-500.0,0.00018791,2]
[372478024,1752659253226,-500.0,0.00018791,2]
[372478025,1752659253254,-500.0,0.00018791,2]
[372478026,1752659253279,-500.0,0.00018791,2]
[372478027,1752659253305,-500.0,0.00018791,2]
[372478028,1752659253329,-500.0,0.00018791,2]
[372478029,1752659253357,-500.0,0.00018791,2]
[372478030,1752659253383,-500.0,0.00018791,2]
[372478031,1752659253405,-500.0,0.00018791,2]
[372478032,1752659253427,-217.13781611,0.00018791,2]
[372478033,1752659253448,-179.78770333,0.00018791,2]
[372478034,1752659253472,-234.45570867,0.00018791,2]
[372478035,1752659253495,-3606.02424112,0.00018792,2]
[372478036,1752659253522,-293.16310342,0.00018792,2]
[372478037,1752659255352,-237.11904914,0.00018792,2]
[372478038,1752659257483,-377.58464696,0.00018792,2]
[372478039,1752659262259,-371.09982355,0.00018791,2]
[372478040,1752659262280,-6.26437078,0.00018791,2]
[372478041,1752659264004,-213.75569615,0.00018791,2]
[372478042,1752659266217,-96.52898977,0.00018791,2]
[372478043,1752659266243,-306.77474976,0.00018791,2]
[372478044,1752659270826,-7.84863953,0.00018791,2]
[372478045,1752659270853,-196.90857292,0.00018791,2]
[372478046,1752659273552,-58.28078186,0.00018791,2]
[372478047,1752659273578,-155.70149908,0.00018792,2]
[372478048,1752659277543,-261.4900929,0.00018792,2]
[372478049,1752659280177,-159.05619583,0.00018792,2]
[372478050,1752659282479,-329.58321832,0.00018792,2]
[372478051,1752659287338,-159.42516871,0.00018791,2]
[372478052,1752659289441,-140.57483129,0.00018791,2]
[372478053,1752659289610,-125.80948525,0.00018792,2]
[372478054,1752659294121,-290.18169965,0.00018791,2]
[372478055,1752659294142,-109.09650391,0.00018792,2]
[372478057,1752659296376,-222.06400111,0.00018792,2]
[372478058,1752659298432,-159.42516871,0.00018791,2]
[372478059,1752659298456,-269.42800697,0.00018792,2]
[372478060,1752659303501,-170.7769818,0.00018792,2]
[372478061,1752659305653,-164.8331603,0.00018792,2]
[372478062,1752659309778,-293.56829723,0.00018228,2]
[372478063,1752659312473,-78.56448048,0.00018228,2]
[372478064,1752659312496,-186.06638885,0.00018236,2]
[372478065,1752659312525,-142.60770173,0.00018792,2]
[372478066,1752659314227,-292.40006787,0.00018792,2]
[372478067,1752659318913,-328.71478455,0.00018792,2]
[372478068,1752659321099,-258.55830446,0.00018792,2]
[372478069,1752659325660,-235.30291172,0.00018792,2]
[372478070,1752659329487,-242.57935731,0.00018791,2]
[372478071,1752659335628,-230.13929357,0.00018791,2]
[372478072,1752659335651,-38.07690084,0.00018792,2]
[372478073,1752659341665,-206.67313358,0.00018791,2]
[372478074,1752659341688,-98.57657953,0.00018792,2]
[372478075,1752659344298,-209.0,0.00018791,2]
[372478076,1752659349929,-91.0,0.00018791,2]
[372478077,1752659349952,-249.94380417,0.000188,2]
[372478078,1752659351500,-159.05927712,0.000188,2]
[372478079,1752659352959,-220.91618432,0.00018791,2]
[372478080,1752659352982,-148.37671098,0.000188,2]
[372478081,1752659357750,-266.83074453,0.000188,2]
[372478082,1752659360076,-173.24435099,0.00018791,2]
[372478083,1752659363441,-306.97039233,0.00018791,2]
[372478084,1752659363463,-52.16102101,0.000188,2]
[372478085,1752659366140,-158.63870121,0.000188,2]
[372478086,1752659367593,-209.62690723,0.000188,2]
[372478087,1752659370961,-154.0,0.000188,2]
[372478088,1752659373921,-197.01177203,0.000188,2]
[372478089,1752659375440,-194.47111093,0.000188,2]
[372478090,1752659381749,-266.07867593,0.000188,2]
[372478091,1752659383766,-170.5273607,0.000188,2]
[372478092,1752659385983,-296.33894631,0.000188,2]
[372478093,1752659390471,-193.25071095,0.000188,2]
[372478094,1752659395482,-153.44818953,0.000188,2]
[372478097,1752659398181,-164.45887404,0.000188,2]
[372478100,1752659400929,-98.98538589,0.000188,2]
[372478101,1752659400951,-237.58464721,0.00018873,2]
[372478102,1752659406028,-165.83428238,0.000188,2]
[372478103,1752659408241,-300.0,0.000188,2]
[372478104,1752659409763,-462.77576147,0.000188,2]
[372478105,1752659414682,-288.73474021,0.00018791,2]
[372478106,1752659414702,-13.13609829,0.00018791,2]
[372478107,1752659416704,-157.39126241,0.00018791,2]
[372478108,1752659416729,-187.65826045,0.00018791,2]
[372478109,1752659418945,-78.42041548,0.00018791,2]
[372478110,1752659418969,-145.48969552,0.00018791,2]
[372478111,1752659422402,-162.53475898,0.00018791,2]
[372478112,1752659425016,-75.26616295,0.00018791,2]
[372478113,1752659425039,-230.21401942,0.00018791,2]
[372478114,1752659427291,-167.81958119,0.00018791,2]
[372478115,1752659430668,-147.32541102,0.00018791,2]
[372478116,1752659430689,-86.41970837,0.00018791,2]
[372478164,1752659433722,-162.53475898,0.00018799,2]
[372478165,1752659433747,-137.46524102,0.00018799,2]
[372478191,1752659437381,-80.08369842,0.00018799,2]
[372478193,1752659437391,-250.45602365,0.00018799,2]
[372478195,1752659437401,-500.0,0.00018799,2]
[372478197,1752659437411,-500.0,0.00018799,2]
[372478199,1752659437421,-540.32891729,0.00018799,2]
[372478201,1752659437430,-20713.02189581,0.000188,2]
[372478202,1752659437439,-300.0,0.00018872,2]
[372478203,1752659437449,-300.0,0.00018872,2]
[372478204,1752659437458,-300.0,0.00018872,2]
[372478205,1752659437468,-300.0,0.00018872,2]
[372478206,1752659437477,-1200.0,0.00018872,2]
[372478207,1752659437487,-262.41535279,0.00018873,2]
[372478208,1752659437497,-500.33609698,0.00018873,2]
[372478209,1752659437506,-500.0,0.00018873,2]
[372478210,1752659437515,-500.0,0.00018873,2]
[372478211,1752659437524,-500.0,0.00018873,2]
[372478212,1752659437534,-500.0,0.00018873,2]
[372478213,1752659437544,-417.091328,0.00018873,2]
[372478214,1752659437554,-500.0,0.00018873,2]
[372478215,1752659437564,-500.0,0.00018873,2]
[372478216,1752659437573,-447.09853856,0.00018873,2]
[372478217,1752659437583,-500.0,0.00018873,2]
[372478218,1752659437593,-478.93555244,0.00018873,2]
[372478219,1752659437603,-500.0,0.00018873,2]
[372478220,1752659437612,-500.0,0.00018873,2]
[372478221,1752659437623,-151.14523778,0.00018885,2]
[372478222,1752659437632,-1289.61,0.00018886,3]
[372478223,1752659437642,-644.8,0.00018886,3]
[372478224,1752659437651,-322.4,0.00018886,3]
[372478225,1752659437661,-198.51,0.00018886,3]
[372478226,1752659437670,-595.54,0.00018886,3]
[372478227,1752659437680,-249.83,0.00018886,3]
[372478228,1752659437690,-20581.51570148,0.00018886,2]
[372478229,1752659437703,-11202.21926129,0.00018886,2]
[372478230,1752659437712,-176.60405728,0.00018895,2]
[372478231,1752659437722,-141374.15161582,0.00018896,2]
[372478232,1752659437733,-460.0,0.00018896,2]
[372478233,1752659437744,-1505.25,0.00018896,2]
[372478234,1752659437756,-133422.10965983,0.00018896,2]
[372478235,1752659437768,-7760.40089491,0.00018896,2]
[372478236,1752659437779,-3422.21629627,0.00018896,2]
[372478237,1752659437791,-1074.74166481,0.00018896,2]
[372478260,1752659438338,-8282.21068333,0.00018896,2]
[372478266,1752659438391,-36521.92229082,0.00018896,2]
[372478268,1752659438401,-151.0,0.000189,2]
[372478270,1752659438410,-1190.55742259,0.000189,2]
[372478272,1752659438420,-244.3898185,0.00019,2]
[372478274,1752659438429,-151.0,0.000191,2]
[372478276,1752659438438,-1190.55742259,0.00019141,2]
[372478278,1752659438448,-275.54684774,0.00019173,2]
[372478292,1752659438566,-505.20433784,0.00019173,2]
[372478294,1752659438576,-500.0,0.00019173,2]
[372478296,1752659438585,-500.0,0.00019173,2]
[372478297,1752659438594,-500.0,0.00019173,2]
[372478299,1752659438603,-211.84188336,0.00019173,2]
[372478301,1752659438612,-500.0,0.00019173,2]
[372478303,1752659438621,-501.48525165,0.00019173,2]
[372478305,1752659438631,-502.95359699,0.00019173,2]
[372478307,1752659438641,-500.0,0.00019173,2]
[372478309,1752659438650,-500.0,0.00019173,2]
[372478311,1752659438659,-501.99323963,0.00019173,2]
[372478313,1752659438668,-500.0,0.00019173,2]
[372478315,1752659438677,-500.0,0.00019173,2]
[372478317,1752659438686,-511.33106895,0.00019173,2]
[372478319,1752659438695,-500.0,0.00019173,2]
[372478321,1752659438705,-501.70385303,0.00019173,2]
[372478323,1752659438714,-500.0,0.00019173,2]
[372478325,1752659438723,-502.10897302,0.00019173,2]
[372478327,1752659438733,-500.0,0.00019173,2]
[372478329,1752659438742,-501.11104142,0.00019173,2]
[372478331,1752659438751,-500.0,0.00019173,2]
[372478333,1752659438760,-501.17731979,0.00019173,2]
[372478335,1752659438769,-502.29023931,0.00019173,2]
[372478337,1752659438778,-500.0,0.00019173,2]
[372478339,1752659438787,-460.0,0.00019178,2]
[372478341,1752659438797,-460.0,0.00019178,2]
[372478343,1752659438806,-332.59587824,0.00019178,2]
[372478345,1752659438815,-460.0,0.00019178,2]
[372478347,1752659438824,-462.39463851,0.00019178,2]
[372478349,1752659438833,-163.82703745,0.00019178,2]
[372478351,1752659438842,-460.0,0.00019178,2]
[372478353,1752659438851,-373.12871714,0.00019178,2]
[372478355,1752659438861,-460.0,0.00019178,2]
[372478357,1752659438871,-460.0,0.00019178,2]
[372478359,1752659438881,-354.32997583,0.00019178,2]
[372478361,1752659438891,-460.0,0.00019178,2]
[372478363,1752659438900,-460.0,0.00019178,2]
[372478365,1752659438910,-565.96,0.00019178,2]
[372478367,1752659438919,-460.0,0.00019178,2]
[372478369,1752659438928,-460.0,0.00019178,2]
[372478371,1752659438938,-460.0,0.00019178,2]
[372478373,1752659438947,-254.81368763,0.00019178,2]
[372478395,1752659439164,-460.0,0.00019178,2]
[372478397,1752659439173,-460.0,0.00019178,2]
[372478399,1752659439183,-240.0,0.00019178,2]
[372478401,1752659439193,-460.0,0.00019178,2]
[372478403,1752659439203,-290.46240012,0.00019178,2]
[372478405,1752659439212,-544.59,0.00019178,2]
[372478407,1752659439222,-460.0,0.00019178,2]
[372478409,1752659439231,-460.0,0.00019178,2]
[372478411,1752659439239,-560.15945798,0.00019178,2]
[372478413,1752659439249,-457.02277436,0.00019178,2]
[372478415,1752659439259,-154.11700291,0.00019178,2]
[372478417,1752659439268,-460.0,0.00019178,2]
[372478419,1752659439278,-465.04092329,0.00019178,2]
[372478421,1752659439287,-460.0,0.00019178,2]
[372478422,1752659439297,-419.14392043,0.00019178,2]
[372478423,1752659439311,-40.85607957,0.00019178,2]
[372478424,1752659439320,-460.0,0.00019178,2]
[372478425,1752659439330,-266.67791093,0.00019178,2]
[372478426,1752659439341,-193.32208907,0.00019178,2]
[372478427,1752659439351,-460.0,0.00019178,2]
[372478429,1752659439360,-47.1915108,0.00019178,2]
[372478431,1752659439372,-412.8084892,0.00019178,2]
[372478433,1752659439381,-88.75721693,0.00019178,2]
[372478435,1752659439394,-201.54278307,0.00019178,2]
[372478437,1752659439403,-460.0,0.00019178,2]
[372478439,1752659439412,-460.0,0.00019178,2]
[372478441,1752659439422,-460.0,0.00019178,2]
[372478443,1752659439431,-349.46118421,0.00019178,2]
[372478445,1752659439441,-460.0,0.00019178,2]
[372478447,1752659439450,-460.0,0.00019178,2]
[372478449,1752659439459,-460.0,0.00019178,2]
[372478451,1752659439469,-460.0,0.00019178,2]
[372478453,1752659439479,-393.42093406,0.00019178,2]
[372478455,1752659439491,-66.57906594,0.00019178,2]
[372478457,1752659439500,-460.0,0.00019178,2]
[372478459,1752659439509,-460.0,0.00019178,2]
[372478461,1752659439519,-460.0,0.00019178,2]
[372478463,1752659439528,-500.0,0.00019178,2]
[372478465,1752659439538,-466.51028585,0.00019178,2]
[372478467,1752659439547,-460.0,0.00019178,2]
[372478469,1752659439557,-460.0,0.00019178,2]
[372478470,1752659439567,-460.0,0.00019178,2]
[372478471,1752659439576,-460.0,0.00019178,2]
[372478472,1752659439586,-460.0,0.00019178,2]
[372478473,1752659439595,-460.0,0.00019178,2]
[372478474,1752659439605,-459.7555823,0.00019178,2]
[372478475,1752659439615,-460.0,0.00019178,2]
[372478476,1752659439624,-460.0,0.00019178,2]
[372478477,1752659439634,-460.0,0.00019178,2]
[372478478,1752659439643,-460.0,0.00019178,2]
[372478479,1752659439652,-460.0,0.00019178,2]
[372478480,1752659439662,-151.33233934,0.00019178,2]
[372478481,1752659439672,-460.0,0.00019178,2]
[372478482,1752659439681,-460.0,0.00019178,2]
[372478483,1752659439691,-2.52071194,0.00019178,2]
[372478484,1752659439705,-457.47928806,0.00019178,2]
[372478485,1752659439714,-460.0,0.00019178,2]
[372478486,1752659439724,-460.0,0.00019178,2]
[372478487,1752659439733,-460.0,0.00019178,2]
[372478488,1752659439742,-466.02746435,0.00019178,2]
[372478489,1752659439752,-460.0,0.00019178,2]
[372478490,1752659439762,-423.89659805,0.00019178,2]
[372478491,1752659439771,-460.0,0.00019178,2]
[372478492,1752659439781,-289.79576107,0.00019178,2]
[372478493,1752659439790,-460.0,0.00019178,2]
[372478494,1752659439800,-460.0,0.00019178,2]
[372478495,1752659439809,-460.0,0.00019178,2]